fUST/lending_fUST_20250701
["ID","MTS","AMOUNT","RATE_DAILY","PERIOD"]
[368730518,1751333445514,-460.0,0.00018493,2]
[368730519,1751333445523,-460.0,0.00018493,2]
[368730520,1751333445534,-460.0,0.00018493,2]
[368730521,1751333445545,-460.0,0.00018493,2]
[368730522,1751333445555,-460.0,0.00018493,2]
[368730523,1751333445565,-460.0,0.00018493,2]
[368730524,1751333445575,-460.0,0.00018493,2]
[368730525,1751333445584,-460.0,0.00018493,2]
[368730526,1751333445594,-468.79021382,0.00018493,2]
[368730527,1751333445603,-460.0,0.00018493,2]
[368730528,1751333445724,-460.0,0.00018493,2]
[368730529,1751333445739,-460.0,0.00018493,2]
[368730530,1751333445749,-460.0,0.00018493,2]
[368730531,1751333445759,-460.0,0.00018493,2]
[368730532,1751333445769,-304.65776431,0.00018493,2]
[368730533,1751333445781,-460.0,0.00018493,2]
[368730534,1751333445790,-460.0,0.00018493,2]
[368730535,1751333445800,-307.24973234,0.00018493,2]
[368730536,1751333445811,-460.0,0.00018493,2]
[368730537,1751333445820,-460.0,0.00018493,2]
[368730538,1751333445829,-460.0,0.00018493,2]
[368730539,1751333445839,-460.0,0.00018493,2]
[368730540,1751333445848,-460.0,0.00018493,2]
[368730541,1751333445858,-460.0,0.00018493,2]
[368730542,1751333445867,-460.0,0.00018493,2]
[368730543,1751333445877,-460.0,0.00018493,2]
[368730544,1751333445888,-596.28732745,0.00018493,2]
[368730545,1751333445898,-460.0,0.00018493,2]
[368730546,1751333445908,-460.0,0.00018493,2]
[368730547,1751333445920,-460.0,0.00018493,2]
[368730548,1751333445930,-460.0,0.00018493,2]
[368730549,1751333445940,-460.0,0.00018493,2]
[368730550,1751333445950,-460.0,0.00018493,2]
[368730551,1751333445961,-460.0,0.00018493,2]
[368730552,1751333445971,-351.14422609,0.00018493,2]
[368730553,1751333445980,-460.0,0.00018493,2]
[368730554,1751333445990,-460.0,0.00018493,2]
[368730555,1751333446001,-460.0,0.00018493,2]
[368730556,1751333446011,-460.0,0.00018493,2]
[368730557,1751333446021,-460.0,0.00018493,2]
[368730558,1751333446032,-460.0,0.00018493,2]
[368730559,1751333446041,-460.0,0.00018493,2]
[368730560,1751333446052,-460.0,0.00018493,2]
[368730561,1751333446063,-460.0,0.00018493,2]
[368730562,1751333446073,-460.0,0.00018493,2]
[368730563,1751333446083,-460.0,0.00018493,2]
[368730564,1751333446094,-460.0,0.00018493,2]
[368730565,1751333446104,-460.0,0.00018596,2]
[368730566,1751333446114,-460.0,0.00018596,2]
[368730567,1751333446125,-460.0,0.00018596,2]
[368730568,1751333446135,-460.0,0.00018596,2]
[368730569,1751333446147,-460.0,0.00018596,2]
[368730570,1751333446157,-460.0,0.00018596,2]
[368730571,1751333446166,-2056.5365543,0.00018597,2]
[368730572,1751333446176,-460.0,0.00018647,2]
[368730573,1751333446186,-460.0,0.00018647,2]
[368730574,1751333446197,-460.0,0.00018647,2]
[368730575,1751333446206,-711.31,0.00018647,2]
[368730576,1751333446216,-460.0,0.00018647,2]
[368730577,1751333446226,-460.0,0.00018657,2]
[368730578,1751333446237,-460.0,0.00018657,2]
[368730579,1751333446246,-502.42,0.00018657,2]
[368730580,1751333446256,-460.0,0.00018657,2]
[368730581,1751333446266,-460.0,0.00018657,2]
[368730582,1751333446276,-460.0,0.00018657,2]
[368730583,1751333446285,-460.0,0.00018657,2]
[368730584,1751333446295,-460.0,0.00018657,2]
[368730585,1751333446305,-203.2,0.00018657,2]
[368730586,1751333446315,-460.0,0.00018657,2]
[368730587,1751333446325,-1191.69,0.00018657,2]
[368730588,1751333446334,-460.0,0.00018657,2]
[368730589,1751333446345,-1043.15,0.00018657,2]
[368730590,1751333446354,-460.0,0.00018657,2]
[368730591,1751333446364,-1301.04,0.00018657,2]
[368730592,1751333446375,-460.0,0.00018657,2]
[368730593,1751333446385,-460.0,0.00018657,2]
[368730594,1751333446394,-460.0,0.00018657,2]
[368730595,1751333446404,-460.0,0.00018657,2]
[368730596,1751333446415,-1360.87,0.00018657,2]
[368730597,1751333446427,-1189.69,0.00018657,2]
[368730598,1751333446438,-460.0,0.00018657,2]
[368730599,1751333446450,-1804.67,0.00018657,2]
[368730600,1751333446459,-460.0,0.00018657,2]
[368730601,1751333446470,-460.0,0.00018657,2]
[368730603,1751333446479,-460.0,0.00018657,2]
[368730605,1751333446488,-460.0,0.00018657,2]
[368730606,1751333446498,-515.24,0.00018657,2]
[368730607,1751333446507,-460.0,0.00018657,2]
[368730608,1751333446517,-460.0,0.00018657,2]
[368730609,1751333446526,-637.8,0.00018657,2]
[368730610,1751333446539,-460.0,0.00018657,2]
[368730611,1751333446548,-625.4,0.00018657,2]
[368730612,1751333446558,-460.0,0.00018657,2]
[368730613,1751333446568,-460.0,0.00018657,2]
[368730614,1751333446578,-460.0,0.00018657,2]
[368730615,1751333446588,-500.0,0.00018657,2]
[368730616,1751333446597,-460.0,0.00018657,2]
[368730617,1751333446607,-460.0,0.00018657,2]
[368730618,1751333446618,-460.0,0.00018657,2]
[368730619,1751333446629,-460.0,0.00018657,2]
[368730620,1751333446639,-460.0,0.00018657,2]
[368730621,1751333446648,-460.0,0.00018657,2]
[368730622,1751333446658,-460.0,0.00018657,2]
[368730623,1751333446668,-460.0,0.00018657,2]
[368730624,1751333446677,-460.0,0.00018657,2]
[368730625,1751333446687,-565.3,0.00018657,2]
[368730626,1751333446696,-460.0,0.00018657,2]
[368730627,1751333446706,-460.0,0.00018657,2]
[368730628,1751333446716,-460.0,0.00018657,2]
[368730629,1751333446725,-460.0,0.00018657,2]
[368730630,1751333446735,-532.14,0.00018657,2]
[368730631,1751333446744,-460.0,0.00018657,2]
[368730632,1751333446754,-460.0,0.00018657,2]
[368730633,1751333446763,-460.0,0.00018657,2]
[368730634,1751333446773,-460.0,0.00018657,2]
[368730635,1751333446782,-460.0,0.00018657,2]
[368730636,1751333446791,-460.0,0.00018657,2]
[368730637,1751333446801,-460.0,0.00018657,2]
[368730639,1751333446811,-246.65686116,0.00018657,2]
[368730640,1751333446820,-463.72754686,0.00018657,2]
[368730641,1751333446829,-460.0,0.00018657,2]
[368730642,1751333446839,-460.0,0.00018657,2]
[368730643,1751333446848,-483.53241979,0.00018657,2]
[368730644,1751333446858,-460.0,0.00018657,2]
[368730645,1751333446868,-465.67555228,0.00018657,2]
[368730646,1751333446878,-467.26083022,0.00018657,2]
[368730647,1751333446888,-460.0,0.00018657,2]
[368730648,1751333446897,-460.0,0.00018658,2]
[368730649,1751333446907,-385.91843248,0.00018658,2]
[368730650,1751333446916,-460.0,0.00018658,2]
[368730651,1751333446926,-524.94155611,0.00018658,2]
[368730652,1751333446935,-409.14901955,0.00018658,2]
[368730653,1751333446947,-460.0,0.00018658,2]
[368730654,1751333446957,-460.0,0.00018658,2]
[368730655,1751333446966,-460.0,0.00018658,2]
[368730656,1751333446975,-460.0,0.00018658,2]
[368730657,1751333446985,-460.0,0.00018658,2]
[368730658,1751333446994,-460.0,0.00018658,2]
[368730659,1751333447004,-267.33587958,0.00018658,2]
[368730660,1751333447013,-460.0,0.00018658,2]
[368730661,1751333447023,-460.0,0.00018658,2]
[368730662,1751333447032,-460.0,0.00018658,2]
[368730663,1751333447042,-460.0,0.00018658,2]
[368730664,1751333447052,-460.0,0.00018658,2]
[368730665,1751333447061,-460.0,0.00018658,2]
[368730666,1751333447071,-460.0,0.00018658,2]
[368730667,1751333447080,-460.0,0.00018658,2]
[368730668,1751333447090,-460.0,0.00018658,2]
[368730669,1751333447100,-460.0,0.00018658,2]
[368730670,1751333447110,-460.0,0.00018658,2]
[368730671,1751333447119,-460.0,0.00018658,2]
[368730672,1751333447129,-460.0,0.00018658,2]
[368730673,1751333447139,-460.0,0.00018658,2]
[368730674,1751333447149,-460.0,0.00018658,2]
[368730675,1751333447159,-460.0,0.00018658,2]
[368730676,1751333447169,-460.0,0.00018658,2]
[368730677,1751333447178,-462.5407306,0.00018658,2]
[368730678,1751333447188,-460.0,0.00018658,2]
[368730679,1751333447197,-460.0,0.00018658,2]
[368730680,1751333447207,-460.0,0.00018658,2]
[368730681,1751333447217,-460.0,0.00018658,2]
[368730682,1751333447227,-263.81,0.00018658,2]
[368730683,1751333447237,-460.0,0.00018658,2]
[368730684,1751333447247,-460.0,0.00018658,2]
[368730685,1751333447256,-460.0,0.00018658,2]
[368730686,1751333447266,-460.0,0.00018658,2]
[368730687,1751333447276,-460.0,0.00018658,2]
[368730688,1751333447286,-502.51766207,0.00018658,2]
[368730689,1751333447295,-460.0,0.00018658,2]
[368730690,1751333447305,-460.0,0.00018658,2]
[368730691,1751333447314,-460.0,0.00018658,2]
[368730692,1751333447324,-460.0,0.00018658,2]
[368730693,1751333447334,-1263.4,0.00018658,2]
[368730694,1751333447344,-460.0,0.00018658,2]
[368730695,1751333447354,-460.0,0.00018658,2]
[368730696,1751333447363,-155.99,0.00018658,2]
[368730697,1751333447374,-525.7,0.00018658,2]
[368730698,1751333447384,-608.07,0.00018658,2]
[368730699,1751333447394,-1090.55,0.00018658,2]
[368730700,1751333447404,-1869.51,0.00018658,2]
[368730701,1751333447414,-460.0,0.00018658,2]
[368730702,1751333447423,-460.0,0.00018658,2]
[368730703,1751333447433,-460.0,0.00018658,2]
[368730704,1751333447443,-460.0,0.00018658,2]
[368730705,1751333447453,-2252.18,0.00018658,2]
[368730706,1751333447462,-645.45,0.00018658,2]
[368730707,1751333447472,-761.24,0.00018658,2]
[368730708,1751333447481,-466.65411036,0.00018658,2]
[368730709,1751333447491,-901.38,0.00018658,2]
[368730710,1751333447500,-181.94067068,0.00018667,2]
[368730711,1751333447510,-554.94,0.00018746,2]
[368730712,1751333447519,-460.0,0.00018746,2]
[368730713,1751333447529,-460.0,0.00018746,2]
[368730714,1751333447542,-460.0,0.00018746,2]
[368730715,1751333447552,-460.0,0.00018746,2]
[368730716,1751333447561,-460.0,0.00018746,2]
[368730717,1751333447571,-460.0,0.00018746,2]
[368730718,1751333447581,-460.0,0.00018746,2]
[368730719,1751333447591,-460.0,0.00018746,2]
[368730720,1751333447600,-460.0,0.00018746,2]
[368730721,1751333447703,-469.72,0.00018746,2]
[368730722,1751333447714,-581.08,0.00018746,2]
[368730723,1751333447724,-460.0,0.00018746,2]
[368730724,1751333447733,-460.0,0.00018746,2]
[368730725,1751333447743,-395.9,0.00018746,2]
[368730726,1751333447754,-460.0,0.00018746,2]
[368730727,1751333447763,-460.0,0.00018746,2]
[368730728,1751333447772,-500.0,0.00018746,2]
[368730729,1751333447782,-460.0,0.00018746,2]
[368730730,1751333447791,-460.0,0.00018746,2]
[368730731,1751333447802,-294.36,0.00018746,2]
[368730732,1751333447811,-460.0,0.00018746,2]
[368730733,1751333447821,-460.0,0.00018746,2]
[368730734,1751333447831,-460.0,0.00018746,2]
[368730735,1751333447841,-503.92,0.00018746,2]
[368730736,1751333447851,-460.0,0.00018746,2]
[368730737,1751333447860,-460.0,0.00018746,2]
[368730738,1751333447870,-526.7,0.00018746,2]
[368730739,1751333447879,-460.0,0.00018746,2]
[368730740,1751333447889,-460.0,0.00018746,2]
[368730741,1751333447898,-460.0,0.00018746,2]
[368730742,1751333447908,-460.0,0.00018746,2]
[368730743,1751333447918,-558.23,0.00018746,2]
[368730744,1751333447927,-460.0,0.00018746,2]
[368730745,1751333447938,-460.0,0.00018767,2]
[368730746,1751333447947,-502.16447343,0.00018767,2]
[368730747,1751333447956,-460.0,0.00018767,2]
[368730748,1751333447965,-460.0,0.00018767,2]
[368730749,1751333447975,-375.06,0.00018767,2]
[368730750,1751333447984,-460.0,0.00018767,2]
[368730751,1751333447994,-460.0,0.00018767,2]
[368730752,1751333448004,-585.2,0.00018767,2]
[368730753,1751333448014,-460.0,0.00018767,2]
[368730754,1751333448024,-534.96,0.00018767,2]
[368730755,1751333448033,-535.7,0.00018767,2]
[368730756,1751333448043,-460.0,0.00018767,2]
[368730757,1751333448052,-460.0,0.00018767,2]
[368730758,1751333448062,-460.0,0.00018767,2]
[368730759,1751333448072,-460.0,0.00018767,2]
[368730760,1751333448082,-460.0,0.00018767,2]
[368730761,1751333448091,-460.0,0.00018767,2]
[368730762,1751333448101,-460.0,0.00018767,2]
[368730763,1751333448111,-460.0,0.00018767,2]
[368730764,1751333448120,-460.0,0.00018767,2]
[368730765,1751333448130,-460.0,0.00018767,2]
[368730766,1751333448140,-460.0,0.00018767,2]
[368730767,1751333448151,-460.0,0.00018767,2]
[368730768,1751333448160,-460.0,0.00018767,2]
[368730769,1751333448170,-460.0,0.00018767,2]
[368730770,1751333448180,-460.0,0.00018767,2]
[368730771,1751333448191,-466.23606517,0.00018767,2]
[368730772,1751333448200,-460.0,0.00018767,2]
[368730773,1751333448211,-460.0,0.0001887,2]
[368730774,1751333448221,-460.0,0.0001887,2]
[368730775,1751333448232,-19777.0,0.000189,2]
[368730776,1751333448242,-150.0,0.000189,2]
[368730777,1751333448252,-460.0,0.00018921,2]
[368730778,1751333448262,-511.50576798,0.00018921,2]
[368730779,1751333448272,-460.0,0.00018921,2]
[368730780,1751333448281,-711.31,0.00018921,2]
[368730781,1751333448291,-460.0,0.00018921,2]
[368730782,1751333448302,-460.0,0.00018931,2]
[368730783,1751333448312,-460.0,0.00018931,2]
[368730784,1751333448321,-195.58,0.00018931,2]
[368730785,1751333448331,-1191.69,0.00018931,2]
[368730786,1751333448341,-460.0,0.00018931,2]
[368730787,1751333448351,-1043.15,0.00018931,2]
[368730788,1751333448361,-460.0,0.00018931,2]
[368730789,1751333448371,-1301.04,0.00018931,2]
[368730790,1751333448382,-460.0,0.00018931,2]
[368730791,1751333448391,-460.0,0.00018931,2]
[368730792,1751333448401,-460.0,0.00018931,2]
[368730793,1751333448411,-460.0,0.00018931,2]
[368730794,1751333448422,-1360.87,0.00018931,2]
[368730795,1751333448432,-1189.69,0.00018931,2]
[368730796,1751333448443,-1804.67,0.00018931,2]
[368730797,1751333448454,-277.19,0.00018931,2]
[368730798,1751333448464,-568.27,0.00018931,2]
[368730799,1751333448473,-504.91,0.00018931,2]
[368730800,1751333448484,-460.0,0.00018931,2]
[368730801,1751333448493,-460.55,0.00018931,2]
[368730802,1751333448503,-637.8,0.00018931,2]
[368730803,1751333448513,-460.0,0.00018931,2]
[368730804,1751333448522,-625.4,0.00018931,2]
[368730805,1751333448532,-460.0,0.00018931,2]
[368730806,1751333448546,-460.0,0.00018931,2]
[368730807,1751333448556,-460.0,0.00018931,2]
[368730808,1751333448566,-336.73143346,0.00018931,2]
[368730809,1751333448576,-460.0,0.00018931,2]
[368730810,1751333448586,-460.0,0.00018931,2]
[368730811,1751333448596,-460.0,0.00018931,2]
[368730812,1751333448606,-460.0,0.00018931,2]
[368730813,1751333448617,-460.0,0.00018931,2]
[368730814,1751333448626,-460.0,0.00018931,2]
[368730815,1751333448636,-460.0,0.00018931,2]
[368730816,1751333448646,-460.0,0.00018931,2]
[368730817,1751333448656,-460.0,0.00018931,2]
[368730818,1751333448666,-460.0,0.00018931,2]
[368730819,1751333448676,-460.0,0.00018931,2]
[368730820,1751333448689,-460.0,0.00018931,2]
[368730821,1751333448700,-460.0,0.00018931,2]
[368730822,1751333448710,-460.0,0.00018931,2]
[368730823,1751333448721,-460.0,0.00018931,2]
[368730824,1751333448731,-460.0,0.00018931,2]
[368730825,1751333448742,-460.0,0.00018931,2]
[368730826,1751333448752,-529.01548667,0.00018931,2]
[368730827,1751333448763,-460.0,0.00018931,2]
[368730828,1751333448772,-500.0,0.00018931,2]
[368730829,1751333448783,-500.0,0.00018931,2]
[368730830,1751333448792,-500.0,0.00018931,2]
[368730831,1751333448802,-165.99111751,0.00018931,2]
[368730832,1751333448812,-500.0,0.00018931,2]
[368730833,1751333448821,-500.0,0.00018931,2]
[368730834,1751333448831,-500.0,0.00018931,2]
[368730835,1751333448841,-500.0,0.00018931,2]
[368730836,1751333448851,-500.0,0.00018931,2]
[368730837,1751333448861,-500.0,0.00018931,2]
[368730838,1751333448871,-500.0,0.00018931,2]
[368730839,1751333448881,-500.0,0.00018931,2]
[368730840,1751333448891,-500.0,0.00018931,2]
[368730841,1751333448900,-500.0,0.00018931,2]
[368730842,1751333448910,-500.0,0.00018931,2]
[368730843,1751333448919,-500.0,0.00018931,2]
[368730844,1751333448929,-500.0,0.00018931,2]
[368730845,1751333448939,-500.0,0.00018931,2]
[368730846,1751333448948,-257.52048022,0.00018931,2]
[368730847,1751333448958,-500.0,0.00018931,2]
[368730848,1751333448968,-500.0,0.00018931,2]
[368730849,1751333448977,-500.0,0.00018931,2]
[368730850,1751333448987,-500.0,0.00018931,2]
[368730851,1751333448996,-460.0,0.00018932,2]
[368730852,1751333449006,-460.0,0.00018932,2]
[368730853,1751333449016,-460.0,0.00018932,2]
[368730854,1751333449026,-460.0,0.00018932,2]
[368730855,1751333449036,-460.0,0.00018932,2]
[368730856,1751333449046,-460.0,0.00018932,2]
[368730857,1751333449056,-460.0,0.00018932,2]
[368730858,1751333449066,-460.0,0.00018932,2]
[368730859,1751333449076,-460.0,0.00018932,2]
[368730860,1751333449086,-460.0,0.00018932,2]
[368730861,1751333449096,-460.0,0.00018932,2]
[368730862,1751333449108,-460.0,0.00018932,2]
[368730863,1751333449119,-460.0,0.00018932,2]
[368730864,1751333449128,-460.0,0.00018932,2]
[368730865,1751333449138,-460.0,0.00018932,2]
[368730866,1751333449148,-460.0,0.00018932,2]
[368730867,1751333449159,-460.0,0.00018932,2]
[368730868,1751333449169,-501.46,0.00018932,2]
[368730869,1751333449179,-460.0,0.00018932,2]
[368730870,1751333449189,-196.31,0.00018932,2]
[368730871,1751333449199,-460.0,0.00018932,2]
[368730872,1751333449209,-460.0,0.00018932,2]
[368730873,1751333449220,-460.0,0.00018932,2]
[368730874,1751333449230,-460.0,0.00018932,2]
[368730875,1751333449240,-460.0,0.00018932,2]
[368730876,1751333449249,-508.02719566,0.00018932,2]
[368730877,1751333449258,-460.0,0.00018932,2]
[368730878,1751333449268,-460.0,0.00018932,2]
[368730879,1751333449278,-460.0,0.00018932,2]
[368730880,1751333449287,-460.0,0.00018932,2]
[368730881,1751333449297,-351.92,0.00018932,2]
[368730882,1751333449307,-1263.4,0.00018932,2]
[368730883,1751333449317,-460.0,0.00018932,2]
[368730884,1751333449327,-460.0,0.00018932,2]
[368730885,1751333449336,-525.7,0.00018932,2]
[368730886,1751333449346,-1090.55,0.00018932,2]
[368730887,1751333449355,-1869.51,0.00018932,2]
[368730888,1751333449365,-460.0,0.00018932,2]
[368730889,1751333449374,-460.0,0.00018932,2]
[368730890,1751333449384,-460.0,0.00018932,2]
[368730891,1751333449394,-460.0,0.00018932,2]
[368730892,1751333449403,-2252.18,0.00018932,2]
[368730893,1751333449412,-645.45,0.00018932,2]
[368730894,1751333449422,-761.24,0.00018932,2]
[368730895,1751333449516,-901.38,0.00018932,2]
[368730896,1751333449527,-500.0,0.00018962,2]
[368730897,1751333449541,-479.67809733,0.00018973,2]
[368730898,1751333449552,-500.0,0.00018996,2]
[368730899,1751333449562,-500.0,0.00018996,2]
[368730900,1751333449571,-500.0,0.00018996,2]
[368730901,1751333449583,-630.74792909,0.00018996,2]
[368730902,1751333449592,-505.10965749,0.00018996,2]
[368730903,1751333449601,-1183.07861305,0.00019,2]
[368730904,1751333449611,-2276.97223159,0.00019,2]
[368730905,1751333449621,-193.5,0.0001902,2]
[368730906,1751333449630,-460.0,0.0001902,2]
[368730907,1751333449640,-460.0,0.0001902,2]
[368730908,1751333449650,-460.0,0.0001902,2]
[368730909,1751333449659,-460.0,0.0001902,2]
[368730910,1751333449671,-460.0,0.0001902,2]
[368730911,1751333449682,-460.0,0.0001902,2]
[368730912,1751333449692,-460.0,0.0001902,2]
[368730913,1751333449702,-460.0,0.0001902,2]
[368730914,1751333449712,-165.74,0.0001902,2]
[368730915,1751333449721,-548.86632599,0.0001902,2]
[368730916,1751333449731,-460.0,0.0001902,2]
[368730917,1751333449740,-460.0,0.0001904,2]
[368730918,1751333449749,-460.0,0.0001904,2]
[368730919,1751333449759,-507.76678407,0.0001904,2]
[368730920,1751333449768,-460.0,0.0001904,2]
[368730921,1751333449778,-460.0,0.0001904,2]
[368730922,1751333449787,-460.0,0.0001904,2]
[368730923,1751333449796,-460.0,0.00019041,2]
[368730924,1751333449806,-460.0,0.00019041,2]
[368730925,1751333449815,-460.0,0.00019041,2]
[368730926,1751333449825,-460.0,0.00019041,2]
[368730927,1751333449835,-460.0,0.00019041,2]
[368730928,1751333449843,-460.0,0.00019041,2]
[368730929,1751333449853,-460.0,0.00019041,2]
[368730930,1751333449862,-460.0,0.00019041,2]
[368730931,1751333449871,-197.92,0.00019041,2]
[368730932,1751333449881,-460.0,0.00019041,2]
[368730933,1751333449891,-460.0,0.00019041,2]
[368730934,1751333449900,-460.0,0.00019041,2]
[368730935,1751333449909,-460.0,0.00019041,2]
[368730936,1751333449919,-460.0,0.00019041,2]
[368730937,1751333449929,-460.0,0.00019041,2]
[368730938,1751333449938,-2276.97223143,0.00019107,2]
[368730939,1751333449948,-500.0,0.00019122,2]
[368730940,1751333449957,-184.44062151,0.00019134,2]
[368730941,1751333449966,-206.5991454,0.00019178,2]
[368730942,1751333449976,-237.202767,0.00019178,2]
[368730943,1751333449986,-460.0,0.00019195,2]
[368730944,1751333449997,-711.31,0.00019195,2]
[368730945,1751333450007,-460.0,0.00019195,2]
[368730946,1751333450017,-487.8787132,0.00019205,2]
[368730947,1751333450027,-460.0,0.00019205,2]
[368730948,1751333450036,-1191.69,0.00019205,2]
[368730949,1751333450045,-460.0,0.00019205,2]
[368730950,1751333450055,-1043.15,0.00019205,2]
[368730951,1751333450065,-460.0,0.00019205,2]
[368730952,1751333450075,-1301.04,0.00019205,2]
[368730953,1751333450084,-460.0,0.00019205,2]
[368730954,1751333450094,-386.56,0.00019205,2]
[368730955,1751333450103,-460.0,0.00019205,2]
[368730956,1751333450113,-460.0,0.00019205,2]
[368730957,1751333450123,-1360.87,0.00019205,2]
[368730958,1751333450132,-1189.69,0.00019205,2]
[368730959,1751333450142,-1804.67,0.00019205,2]
[368730960,1751333450151,-460.0,0.00019205,2]
[368730961,1751333450160,-637.8,0.00019205,2]
[368730962,1751333450170,-625.4,0.00019205,2]
[368730963,1751333450179,-460.0,0.00019205,2]
[368730964,1751333450189,-460.0,0.00019205,2]
[368730965,1751333450199,-204.8,0.00019205,2]
[368730966,1751333450209,-460.0,0.00019205,2]
[368730967,1751333450218,-387.05,0.00019205,2]
[368730968,1751333450228,-460.0,0.00019205,2]
[368730969,1751333450237,-460.0,0.00019205,2]
[368730970,1751333450247,-545.78,0.00019205,2]
[368730971,1751333450256,-321.6,0.00019205,2]
[368730972,1751333450265,-151.0,0.00019205,2]
[368730973,1751333450275,-151.0,0.00019205,2]
[368730974,1751333450284,-188.6,0.00019205,2]
[368730975,1751333450293,-460.0,0.00019205,2]
[368730976,1751333450303,-460.0,0.00019205,2]
[368730977,1751333450312,-460.0,0.00019205,2]
[368730978,1751333450323,-176.6,0.00019205,2]
[368730979,1751333450334,-460.0,0.00019205,2]
[368730980,1751333450346,-478.67871519,0.00019205,2]
[368730981,1751333450356,-236.73638586,0.00019205,2]
[368730982,1751333450366,-273.14270392,0.00019205,2]
[368730983,1751333450376,-464.72845553,0.00019205,2]
[368730984,1751333450385,-460.0,0.00019206,2]
[368730985,1751333450395,-460.0,0.00019206,2]
[368730986,1751333450404,-460.0,0.00019206,2]
[368730987,1751333450414,-460.0,0.00019206,2]
[368730988,1751333450423,-460.0,0.00019206,2]
[368730989,1751333450433,-476.84,0.00019206,2]
[368730990,1751333450442,-479.56126201,0.00019206,2]
[368730991,1751333450451,-593.32,0.00019206,2]
[368730992,1751333450461,-435.24096915,0.00019206,2]
[368730993,1751333450470,-460.0,0.00019206,2]
[368730994,1751333450479,-460.0,0.00019206,2]
[368730995,1751333450489,-460.0,0.00019206,2]
[368730996,1751333450499,-460.0,0.00019206,2]
[368730997,1751333450508,-460.0,0.00019206,2]
[368730998,1751333450518,-550.21807375,0.00019206,2]
[368730999,1751333450527,-460.0,0.00019206,2]
[368731000,1751333450538,-460.0,0.00019206,2]
[368731001,1751333450548,-460.0,0.00019206,2]
[368731002,1751333450557,-460.0,0.00019206,2]
[368731003,1751333450567,-460.0,0.00019206,2]
[368731004,1751333450575,-1263.4,0.00019206,2]
[368731005,1751333450587,-460.0,0.00019206,2]
[368731006,1751333450597,-460.0,0.00019206,2]
[368731007,1751333450606,-525.7,0.00019206,2]
[368731008,1751333450617,-1090.55,0.00019206,2]
[368731009,1751333450626,-1869.51,0.00019206,2]
[368731010,1751333450636,-460.0,0.00019206,2]
[368731011,1751333450644,-460.0,0.00019206,2]
[368731012,1751333450654,-460.0,0.00019206,2]
[368731013,1751333450664,-2252.18,0.00019206,2]
[368731014,1751333450673,-645.45,0.00019206,2]
[368731015,1751333450683,-761.24,0.00019206,2]
[368731016,1751333450692,-901.38,0.00019206,2]
[368731017,1751333450702,-158.04369357,0.00019232,2]
[368731018,1751333450712,-151.0,0.00019232,2]
[368731019,1751333450721,-455.59,0.00019294,2]
[368731020,1751333450731,-506.24,0.00019294,2]